[Event "Titled Tuesday Blitz April 05 Late 2022"]
[White "Jacobson, Brandon"]
[Black "Villegas, Pierre"]
[WhiteFideId "30901561"]
[BlackFideId "654183"]
[WhiteElo "2362"]
[BlackElo "2386"]
[Result "1-0"]
[Round "01"]
[TimeControl "180+1"]
[Date "2022.04.05"]
[WhiteClock "0:00:37"]
[BlackClock "0:00:02"]

1. c4 {[%clk 0:03:00]}  e6 {[%clk 0:02:58]} 2. Nc3 {[%clk 0:02:59]}  d5 {[%clk 0:02:58]} 3. d4 {[%clk 0:02:59]}  a6 {[%clk 0:02:57]} 4. cxd5 {[%clk 0:02:59]}  exd5 {[%clk 0:02:58]} 5. Nf3 {[%clk 0:02:59]}  Nf6 {[%clk 0:02:57]} 6. Bg5 {[%clk 0:03:00]}  Be6 {[%clk 0:02:58]} 7. Bxf6 {[%clk 0:03:00]}  Qxf6 {[%clk 0:02:57]} 8. Qb3 {[%clk 0:03:01]}  Ra7 {[%clk 0:02:52]} 9. g3 {[%clk 0:03:00]}  Nd7 {[%clk 0:02:38]} 10. h4 {[%clk 0:02:57]}  c6 {[%clk 0:02:32]} 11. Bh3 {[%clk 0:02:51]}  Bxh3 {[%clk 0:02:26]} 12. Rxh3 {[%clk 0:02:52]}  Bd6 {[%clk 0:02:22]} 13. O-O-O {[%clk 0:02:46]}  O-O {[%clk 0:02:19]} 14. Qc2 {[%clk 0:02:36]}  Re8 {[%clk 0:02:18]} 15. Ng5 {[%clk 0:02:35]}  Nf8 {[%clk 0:02:14]} 16. e4 {[%clk 0:02:34]}  dxe4 {[%clk 0:02:07]} 17. Ncxe4 {[%clk 0:02:35]}  Qd8 {[%clk 0:02:05]} 18. Qb3 {[%clk 0:02:29]}  b5 {[%clk 0:01:42]} 19. Rhh1 {[%clk 0:02:26]}  a5 {[%clk 0:01:33]} 20. Rhe1 {[%clk 0:02:26]}  a4 {[%clk 0:01:30]} 21. Qc2 {[%clk 0:02:26]}  a3 {[%clk 0:01:29]} 22. b3 {[%clk 0:02:18]}  Bb4 {[%clk 0:01:26]} 23. Re3 {[%clk 0:02:08]}  f6 {[%clk 0:01:20]} 24. Nf3 {[%clk 0:02:00]}  Rae7 {[%clk 0:01:19]} 25. Kb1 {[%clk 0:01:35]}  Qd5 {[%clk 0:01:12]} 26. Nc3 {[%clk 0:01:36]}  Bxc3 {[%clk 0:01:10]} 27. Rxc3 {[%clk 0:01:36]}  Re2 {[%clk 0:01:06]} 28. Rd2 {[%clk 0:01:37]}  Rxd2 {[%clk 0:00:36]} 29. Qxd2 {[%clk 0:01:38]}  Qf5+ {[%clk 0:00:23]} 30. Qd3 {[%clk 0:01:32]}  Qh3 {[%clk 0:00:20]} 31. Rxc6 {[%clk 0:01:29]}  Qg2 {[%clk 0:00:15]} 32. Rc2 {[%clk 0:01:27]}  Ne6 {[%clk 0:00:15]} 33. Re2 {[%clk 0:01:25]}  Qf1+ {[%clk 0:00:13]} 34. Ne1 {[%clk 0:01:24]}  Kf7 {[%clk 0:00:11]} 35. Qxb5 {[%clk 0:01:18]}  Rd8 {[%clk 0:00:04]} 36. Qb7+ {[%clk 0:01:13]}  Kg8 {[%clk 0:00:04]} 37. Rxe6 {[%clk 0:01:10]}  Qxf2 {[%clk 0:00:03]} 38. Nc2 {[%clk 0:00:53]}  Qd2 {[%clk 0:00:04]} 39. Re1 {[%clk 0:00:44]}  Qc3 {[%clk 0:00:03]} 40. Kc1 {[%clk 0:00:44]}  Rc8 {[%clk 0:00:03]} 41. Qd5+ {[%clk 0:00:42]}  Kh8 {[%clk 0:00:02]} 42. Qc4 {[%clk 0:00:38]}  Qb2+ {[%clk 0:00:02]} 43. Kd2 {[%clk 0:00:37]} 1-0


[Site "https://www.chess.com"]

[Event "Titled Tuesday Blitz April 05 Late 2022"]
[White "Janturin, Artur"]
[Black "Bashirli, Nail"]
[WhiteFideId "4130022"]
[BlackFideId "13406809"]
[WhiteElo "2340"]
[BlackElo "2333"]
[Result "0-1"]
[Round "01"]
[TimeControl "180+1"]
[Date "2022.04.06"]
[WhiteClock "0:00:17"]
[BlackClock "0:01:45"]

1. b3 {[%clk 0:03:00]}  d5 {[%clk 0:02:57]} 2. Bb2 {[%clk 0:03:00]}  c5 {[%clk 0:02:58]} 3. e3 {[%clk 0:03:00]}  a6 {[%clk 0:02:58]} 4. f4 {[%clk 0:03:00]}  Nc6 {[%clk 0:02:58]} 5. Nf3 {[%clk 0:03:00]}  Bg4 {[%clk 0:02:55]} 6. Be2 {[%clk 0:03:00]}  e6 {[%clk 0:02:53]} 7. O-O {[%clk 0:03:00]}  f6 {[%clk 0:02:52]} 8. Qe1 {[%clk 0:02:57]}  Nh6 {[%clk 0:02:49]} 9. h3 {[%clk 0:02:55]}  Bxf3 {[%clk 0:02:49]} 10. Bxf3 {[%clk 0:02:56]}  Bd6 {[%clk 0:02:49]} 11. d3 {[%clk 0:02:43]}  O-O {[%clk 0:02:49]} 12. Nd2 {[%clk 0:02:43]}  d4 {[%clk 0:02:38]} 13. Bxc6 {[%clk 0:02:39]}  bxc6 {[%clk 0:02:34]} 14. exd4 {[%clk 0:02:38]}  cxd4 {[%clk 0:02:16]} 15. Qxe6+ {[%clk 0:02:35]}  Kh8 {[%clk 0:02:16]} 16. Nc4 {[%clk 0:02:05]}  Bb4 {[%clk 0:02:14]} 17. Qxc6 {[%clk 0:02:00]}  Nf5 {[%clk 0:02:11]} 18. a3 {[%clk 0:01:57]}  Bc3 {[%clk 0:02:10]} 19. Qc5 {[%clk 0:01:35]}  Bxb2 {[%clk 0:02:07]} 20. Nxb2 {[%clk 0:01:33]}  Ne3 {[%clk 0:02:05]} 21. Rf2 {[%clk 0:01:30]}  Rc8 {[%clk 0:02:04]} 22. Qa7 {[%clk 0:01:16]}  Nxc2 {[%clk 0:01:58]} 23. Rd1 {[%clk 0:00:51]}  Ne3 {[%clk 0:01:52]} 24. Re1 {[%clk 0:00:47]}  Qa5 {[%clk 0:01:52]} 25. Rfe2 {[%clk 0:00:40]}  Qxa3 {[%clk 0:01:48]} 26. Qxd4 {[%clk 0:00:20]}  Nc2 {[%clk 0:01:47]} 27. Rxc2 {[%clk 0:00:17]}  Rxc2 {[%clk 0:01:48]} 28. Nc4 {[%clk 0:00:18]}  Qa2 {[%clk 0:01:47]} 29. Qd6 {[%clk 0:00:17]}  Rxg2+ {[%clk 0:01:45]} 0-1


[Site "https://www.chess.com"]

[Event "Titled Tuesday Blitz April 05 Late 2022"]
[White "Jaracz, Pawel"]
[Black "Danaci, Ege"]
[WhiteFideId "1102222"]
[BlackFideId "34506748"]
[WhiteElo "2429"]
[BlackElo "1799"]
[Result "0-1"]
[Round "01"]
[TimeControl "180+1"]
[Date "2022.04.06"]
[WhiteClock "0:00:01"]
[BlackClock "0:00:05"]

1. c4 {[%clk 0:02:59]}  e5 {[%clk 0:02:58]} 2. Nc3 {[%clk 0:02:57]}  Nc6 {[%clk 0:02:58]} 3. g3 {[%clk 0:02:56]}  h5 {[%clk 0:02:58]} 4. Nf3 {[%clk 0:02:54]}  h4 {[%clk 0:02:58]} 5. Nxh4 {[%clk 0:02:53]}  Rxh4 {[%clk 0:02:58]} 6. gxh4 {[%clk 0:02:53]}  Qxh4 {[%clk 0:02:59]} 7. e3 {[%clk 0:02:51]}  Nf6 {[%clk 0:02:51]} 8. a3 {[%clk 0:02:49]}  d6 {[%clk 0:02:42]} 9. Qf3 {[%clk 0:02:48]}  Bg4 {[%clk 0:02:29]} 10. Qg3 {[%clk 0:02:47]}  Qh5 {[%clk 0:02:30]} 11. Rg1 {[%clk 0:02:35]}  O-O-O {[%clk 0:02:07]} 12. Nd5 {[%clk 0:02:33]}  Be6 {[%clk 0:02:03]} 13. Be2 {[%clk 0:02:16]}  Qh7 {[%clk 0:02:02]} 14. Nxf6 {[%clk 0:02:10]}  gxf6 {[%clk 0:02:00]} 15. d3 {[%clk 0:02:08]}  d5 {[%clk 0:01:52]} 16. cxd5 {[%clk 0:02:07]}  Bxd5 {[%clk 0:01:53]} 17. Bd2 {[%clk 0:02:02]}  Bd6 {[%clk 0:01:50]} 18. Bc3 {[%clk 0:01:45]}  e4 {[%clk 0:01:36]} 19. Qg4+ {[%clk 0:01:44]}  f5 {[%clk 0:01:36]} 20. Qg5 {[%clk 0:01:35]}  Qxh2 {[%clk 0:01:22]} 21. O-O-O {[%clk 0:01:02]}  Qxf2 {[%clk 0:01:22]} 22. Rg2 {[%clk 0:01:01]}  Be7 {[%clk 0:01:11]} 23. Rxf2 {[%clk 0:00:44]}  Bxg5 {[%clk 0:01:11]} 24. Rxf5 {[%clk 0:00:45]}  Bxe3+ {[%clk 0:01:11]} 25. Kc2 {[%clk 0:00:44]}  Be6 {[%clk 0:01:04]} 26. Rff1 {[%clk 0:00:38]}  Rg8 {[%clk 0:00:45]} 27. dxe4 {[%clk 0:00:28]}  Rg2 {[%clk 0:00:45]} 28. Kd3 {[%clk 0:00:23]}  Bb6 {[%clk 0:00:32]} 29. Bf3 {[%clk 0:00:20]}  Rg3 {[%clk 0:00:31]} 30. Be1 {[%clk 0:00:10]}  Ne5+ {[%clk 0:00:27]} 31. Kc2 {[%clk 0:00:09]}  Rxf3 {[%clk 0:00:25]} 32. Rxf3 {[%clk 0:00:08]}  Nxf3 {[%clk 0:00:26]} 33. Bc3 {[%clk 0:00:09]}  c6 {[%clk 0:00:20]} 34. Rh1 {[%clk 0:00:08]}  Nd4+ {[%clk 0:00:17]} 35. Kd3 {[%clk 0:00:09]}  Nb3 {[%clk 0:00:11]} 36. Be5 {[%clk 0:00:05]}  Nc5+ {[%clk 0:00:10]} 37. Ke3 {[%clk 0:00:04]}  Nd7+ {[%clk 0:00:08]} 38. Bd4 {[%clk 0:00:05]}  c5 {[%clk 0:00:05]} 39. Bc3 {[%clk 0:00:05]}  c4+ {[%clk 0:00:06]} 40. Bd4 {[%clk 0:00:05]}  Nc5 {[%clk 0:00:05]} 41. Rh8+ {[%clk 0:00:03]}  Kd7 {[%clk 0:00:06]} 42. Rh5 {[%clk 0:00:04]}  Kc6 {[%clk 0:00:06]} 43. Rh8 {[%clk 0:00:03]}  Na4 {[%clk 0:00:06]} 44. Bxb6 {[%clk 0:00:03]}  Kxb6 {[%clk 0:00:07]} 45. Rh2 {[%clk 0:00:03]}  Kc5 {[%clk 0:00:04]} 46. Rh5+ {[%clk 0:00:03]}  Kb6 {[%clk 0:00:04]} 47. Rh2 {[%clk 0:00:03]}  a6 {[%clk 0:00:03]} 48. Kd4 {[%clk 0:00:04]}  Kc6 {[%clk 0:00:03]} 49. Rf2 {[%clk 0:00:04]}  Nc5 {[%clk 0:00:04]} 50. Rh2 {[%clk 0:00:03]}  Nb3+ {[%clk 0:00:04]} 51. Kc3 {[%clk 0:00:04]}  b5 {[%clk 0:00:04]} 52. Rh8 {[%clk 0:00:03]}  Nc5 {[%clk 0:00:05]} 53. Ra8 {[%clk 0:00:03]}  Nxe4+ {[%clk 0:00:05]} 54. Kd4 {[%clk 0:00:04]}  Nc5 {[%clk 0:00:06]} 55. Rb8 {[%clk 0:00:03]}  Na4 {[%clk 0:00:06]} 56. Ra8 {[%clk 0:00:02]}  Nxb2 {[%clk 0:00:06]} 57. Rxa6+ {[%clk 0:00:02]}  Kb7 {[%clk 0:00:07]} 58. Rd6 {[%clk 0:00:02]}  Na4 {[%clk 0:00:06]} 59. Rd8 {[%clk 0:00:02]}  c3 {[%clk 0:00:06]} 60. Kd3 {[%clk 0:00:02]}  Bc4+ {[%clk 0:00:07]} 61. Ke3 {[%clk 0:00:01]}  c2 {[%clk 0:00:07]} 62. Kd2 {[%clk 0:00:02]}  Bb3 {[%clk 0:00:07]} 63. Rd7+ {[%clk 0:00:02]}  Kc6 {[%clk 0:00:07]} 64. Rd8 {[%clk 0:00:02]}  Nc5 {[%clk 0:00:06]} 65. Rc8+ {[%clk 0:00:02]}  Kd5 {[%clk 0:00:06]} 66. Rd8+ {[%clk 0:00:03]}  Kc4 {[%clk 0:00:07]} 67. Rh8 {[%clk 0:00:03]}  b4 {[%clk 0:00:06]} 68. Rh4+ {[%clk 0:00:03]}  Kd5 {[%clk 0:00:05]} 69. Rxb4 {[%clk 0:00:04]}  Ba4 {[%clk 0:00:03]} 70. Rb8 {[%clk 0:00:04]}  f5 {[%clk 0:00:03]} 71. Rd8+ {[%clk 0:00:04]}  Ke5 {[%clk 0:00:03]} 72. Rc8 {[%clk 0:00:03]}  Ne6 {[%clk 0:00:03]} 73. Rc3 {[%clk 0:00:03]}  f4 {[%clk 0:00:03]} 74. Rc4 {[%clk 0:00:03]}  Bb5 {[%clk 0:00:03]} 75. Rxc2 {[%clk 0:00:02]}  Bd7 {[%clk 0:00:02]} 76. Kc3 {[%clk 0:00:03]}  Nd4 {[%clk 0:00:02]} 77. Rd2 {[%clk 0:00:03]}  Nf5 {[%clk 0:00:02]} 78. Kb4 {[%clk 0:00:02]}  Ne3 {[%clk 0:00:02]} 79. a4 {[%clk 0:00:02]}  f3 {[%clk 0:00:02]} 80. a5 {[%clk 0:00:02]}  Nd5+ {[%clk 0:00:02]} 81. Kc5 {[%clk 0:00:02]}  Be6 {[%clk 0:00:03]} 82. a6 {[%clk 0:00:02]}  Nc7 {[%clk 0:00:03]} 83. a7 {[%clk 0:00:02]}  Na8 {[%clk 0:00:04]} 84. Rd8 {[%clk 0:00:01]}  f2 {[%clk 0:00:04]} 85. Rf8 {[%clk 0:00:02]}  Bf5 {[%clk 0:00:04]} 86. Re8+ {[%clk 0:00:02]}  Kf4 {[%clk 0:00:04]} 87. Rxa8 {[%clk 0:00:01]}  f1=Q {[%clk 0:00:05]} 88. Kb6 {[%clk 0:00:01]}  Qf2+ {[%clk 0:00:05]} 0-1


[Site "https://www.chess.com"]

[Event "Titled Tuesday Blitz April 05 Late 2022"]
[White "Javakhadze, Zurab"]
[Black "Romero Ruscalleda, Josep"]
[WhiteFideId "13603647"]
[BlackFideId "2231859"]
[WhiteElo "2381"]
[BlackElo "2291"]
[Result "1-0"]
[Round "01"]
[TimeControl "180+1"]
[Date "2022.04.06"]
[WhiteClock "0:00:26"]
[BlackClock "0:00:07"]

1. d4 {[%clk 0:03:00]}  g6 {[%clk 0:03:00]} 2. c4 {[%clk 0:03:00]}  Bg7 {[%clk 0:03:00]} 3. Nf3 {[%clk 0:02:59]}  d6 {[%clk 0:03:00]} 4. Nc3 {[%clk 0:02:59]}  Nf6 {[%clk 0:03:00]} 5. e4 {[%clk 0:02:59]}  O-O {[%clk 0:03:00]} 6. Be2 {[%clk 0:02:59]}  Nc6 {[%clk 0:02:59]} 7. O-O {[%clk 0:02:52]}  Bg4 {[%clk 0:02:51]} 8. d5 {[%clk 0:02:50]}  Nb8 {[%clk 0:02:46]} 9. Be3 {[%clk 0:02:46]}  c5 {[%clk 0:02:45]} 10. h3 {[%clk 0:02:25]}  Bd7 {[%clk 0:02:45]} 11. e5 {[%clk 0:02:23]}  dxe5 {[%clk 0:02:41]} 12. Nxe5 {[%clk 0:02:20]}  Qc8 {[%clk 0:02:18]} 13. Rc1 {[%clk 0:02:17]}  Ne8 {[%clk 0:02:17]} 14. Nd3 {[%clk 0:02:17]}  b6 {[%clk 0:02:16]} 15. a3 {[%clk 0:02:17]}  Nd6 {[%clk 0:02:16]} 16. Nb1 {[%clk 0:02:03]}  a5 {[%clk 0:02:03]} 17. b4 {[%clk 0:01:59]}  axb4 {[%clk 0:02:03]} 18. axb4 {[%clk 0:01:59]}  Na6 {[%clk 0:01:52]} 19. bxc5 {[%clk 0:01:53]}  Nxc5 {[%clk 0:01:47]} 20. Nxc5 {[%clk 0:01:46]}  bxc5 {[%clk 0:01:46]} 21. Nc3 {[%clk 0:01:34]}  Nf5 {[%clk 0:01:45]} 22. Bg5 {[%clk 0:01:30]}  h6 {[%clk 0:01:42]} 23. Bf4 {[%clk 0:01:30]}  Nd4 {[%clk 0:01:41]} 24. Bd3 {[%clk 0:01:30]}  Bf5 {[%clk 0:01:40]} 25. Re1 {[%clk 0:01:26]}  Re8 {[%clk 0:01:36]} 26. Ne4 {[%clk 0:01:24]}  Ra2 {[%clk 0:01:21]} 27. Rb1 {[%clk 0:01:21]}  Bxe4 {[%clk 0:00:47]} 28. Rxe4 {[%clk 0:01:17]}  Qa6 {[%clk 0:00:43]} 29. Qe1 {[%clk 0:01:15]}  Nf5 {[%clk 0:00:33]} 30. Bf1 {[%clk 0:00:46]}  Bd4 {[%clk 0:00:29]} 31. Re2 {[%clk 0:00:40]}  g5 {[%clk 0:00:24]} 32. Be5 {[%clk 0:00:37]}  Qxc4 {[%clk 0:00:17]} 33. Rxa2 {[%clk 0:00:33]}  Qxa2 {[%clk 0:00:16]} 34. Bd3 {[%clk 0:00:32]}  Bxe5 {[%clk 0:00:10]} 35. Qxe5 {[%clk 0:00:31]}  Qd2 {[%clk 0:00:09]} 36. Qxf5 {[%clk 0:00:28]}  e6 {[%clk 0:00:06]} 37. Qh7+ {[%clk 0:00:26]}  Kf8 {[%clk 0:00:07]} 38. d6 {[%clk 0:00:26]} 1-0


[Site "https://www.chess.com"]

[Event "Titled Tuesday Blitz April 05 Late 2022"]
[White "Jumabayev, Rinat"]
[Black "Chen, Justin"]
[WhiteFideId "13702661"]
[BlackFideId "2098199"]
[WhiteElo "2561"]
[BlackElo "2502"]
[Result "1-0"]
[Round "01"]
[TimeControl "180+1"]
[Date "2022.04.05"]
[WhiteClock "0:00:07"]
[BlackClock "0:00:02"]

1. d4 {[%clk 0:03:00]}  Nf6 {[%clk 0:02:59]} 2. Bf4 {[%clk 0:03:01]}  d5 {[%clk 0:02:57]} 3. e3 {[%clk 0:03:01]}  c5 {[%clk 0:02:57]} 4. c3 {[%clk 0:02:59]}  Nc6 {[%clk 0:02:57]} 5. Nd2 {[%clk 0:03:00]}  Bf5 {[%clk 0:02:42]} 6. Qb3 {[%clk 0:02:51]}  Qc8 {[%clk 0:02:33]} 7. Ngf3 {[%clk 0:02:38]}  e6 {[%clk 0:02:25]} 8. Be2 {[%clk 0:02:32]}  Be7 {[%clk 0:02:22]} 9. Nh4 {[%clk 0:02:32]}  Be4 {[%clk 0:02:17]} 10. dxc5 {[%clk 0:02:02]}  Bxc5 {[%clk 0:02:01]} 11. Nxe4 {[%clk 0:02:02]}  Nxe4 {[%clk 0:02:01]} 12. Nf3 {[%clk 0:02:00]}  O-O {[%clk 0:01:58]} 13. O-O {[%clk 0:01:59]}  Bd6 {[%clk 0:01:06]} 14. Bxd6 {[%clk 0:01:58]}  Nxd6 {[%clk 0:01:07]} 15. Rfd1 {[%clk 0:01:58]}  Rd8 {[%clk 0:01:06]} 16. Rac1 {[%clk 0:01:57]}  Qc7 {[%clk 0:01:06]} 17. Nd4 {[%clk 0:01:50]}  Rac8 {[%clk 0:01:05]} 18. Qc2 {[%clk 0:01:49]}  Ne5 {[%clk 0:01:04]} 19. Qb1 {[%clk 0:01:48]}  Nec4 {[%clk 0:01:00]} 20. b3 {[%clk 0:01:47]}  Nb6 {[%clk 0:00:59]} 21. Bf3 {[%clk 0:01:40]}  Qe7 {[%clk 0:00:59]} 22. g3 {[%clk 0:01:35]}  Rc5 {[%clk 0:01:00]} 23. Rc2 {[%clk 0:01:33]}  Rdc8 {[%clk 0:01:00]} 24. Rdc1 {[%clk 0:01:34]}  Nb5 {[%clk 0:00:57]} 25. Qb2 {[%clk 0:01:27]}  Nxd4 {[%clk 0:00:46]} 26. exd4 {[%clk 0:01:25]}  R5c7 {[%clk 0:00:46]} 27. a4 {[%clk 0:01:21]}  Nd7 {[%clk 0:00:32]} 28. a5 {[%clk 0:01:06]}  Nb8 {[%clk 0:00:29]} 29. c4 {[%clk 0:00:56]}  dxc4 {[%clk 0:00:17]} 30. bxc4 {[%clk 0:00:57]}  h6 {[%clk 0:00:13]} 31. d5 {[%clk 0:00:38]}  exd5 {[%clk 0:00:13]} 32. Bxd5 {[%clk 0:00:38]}  Nc6 {[%clk 0:00:12]} 33. Re2 {[%clk 0:00:35]}  Qb4 {[%clk 0:00:09]} 34. Ra1 {[%clk 0:00:09]}  Qxb2 {[%clk 0:00:08]} 35. Rxb2 {[%clk 0:00:10]}  Kf8 {[%clk 0:00:08]} 36. Kg2 {[%clk 0:00:09]}  g6 {[%clk 0:00:05]} 37. h4 {[%clk 0:00:09]}  h5 {[%clk 0:00:05]} 38. Rb5 {[%clk 0:00:09]}  a6 {[%clk 0:00:02]} 39. Rb6 {[%clk 0:00:09]}  Kg7 {[%clk 0:00:03]} 40. Kh3 {[%clk 0:00:07]}  Rd8 {[%clk 0:00:01]} 41. Ra2 {[%clk 0:00:07]}  Rdc8 {[%clk 0:00:01]} 42. f3 {[%clk 0:00:07]}  Ne5 {[%clk 0:00:02]} 43. Bxb7 {[%clk 0:00:05]}  Rb8 {[%clk 0:00:02]} 44. Bxa6 {[%clk 0:00:05]}  Ra8 {[%clk 0:00:01]} 45. Bb7 {[%clk 0:00:05]}  Ra7 {[%clk 0:00:02]} 46. a6 {[%clk 0:00:05]}  Nxc4 {[%clk 0:00:02]} 47. Rb4 {[%clk 0:00:06]}  Nd6 {[%clk 0:00:03]} 48. Rab2 {[%clk 0:00:06]}  Re7 {[%clk 0:00:02]} 49. Kg2 {[%clk 0:00:06]}  Nf5 {[%clk 0:00:02]} 50. Kf2 {[%clk 0:00:06]}  Nd6 {[%clk 0:00:02]} 51. Rb6 {[%clk 0:00:06]}  Nf5 {[%clk 0:00:02]} 52. R6b4 {[%clk 0:00:06]}  Nd6 {[%clk 0:00:02]} 53. R2b3 {[%clk 0:00:06]}  Rc7 {[%clk 0:00:02]} 54. g4 {[%clk 0:00:07]}  hxg4 {[%clk 0:00:02]} 55. fxg4 {[%clk 0:00:07]}  Rc2+ {[%clk 0:00:02]} 56. Kg3 {[%clk 0:00:08]}  Rc7 {[%clk 0:00:03]} 57. Rb6 {[%clk 0:00:08]}  Ne4+ {[%clk 0:00:02]} 58. Bxe4 {[%clk 0:00:07]}  Rc4 {[%clk 0:00:02]} 59. Bb7 {[%clk 0:00:07]} 1-0


[Site "https://www.chess.com"]

[Event "Titled Tuesday Blitz April 05 Late 2022"]
[White "Karas, Marek"]
[Black "Ashiev, Eduard"]
[WhiteFideId "14928558"]
[BlackFideId "4130090"]
[WhiteElo "2271"]
[BlackElo "2004"]
[Result "1-0"]
[Round "01"]
[TimeControl "180+1"]
[Date "2022.04.06"]
[WhiteClock "0:01:59"]
[BlackClock "0:00:28"]

1. d4 {[%clk 0:03:00]}  d6 {[%clk 0:02:57]} 2. e4 {[%clk 0:03:00]}  Nf6 {[%clk 0:02:57]} 3. Nc3 {[%clk 0:03:00]}  g6 {[%clk 0:02:57]} 4. Be2 {[%clk 0:02:59]}  Bg7 {[%clk 0:02:55]} 5. g4 {[%clk 0:02:59]}  c5 {[%clk 0:02:51]} 6. d5 {[%clk 0:03:00]}  h5 {[%clk 0:02:37]} 7. g5 {[%clk 0:03:00]}  Ng8 {[%clk 0:02:33]} 8. h4 {[%clk 0:02:59]}  Na6 {[%clk 0:02:30]} 9. Be3 {[%clk 0:02:58]}  Nc7 {[%clk 0:02:29]} 10. a4 {[%clk 0:02:57]}  e6 {[%clk 0:02:28]} 11. Nf3 {[%clk 0:02:47]}  Ne7 {[%clk 0:02:26]} 12. dxe6 {[%clk 0:02:38]}  Bxe6 {[%clk 0:02:22]} 13. Qd2 {[%clk 0:02:36]}  O-O {[%clk 0:01:53]} 14. O-O-O {[%clk 0:02:30]}  b6 {[%clk 0:01:02]} 15. Qxd6 {[%clk 0:02:28]}  Qxd6 {[%clk 0:00:58]} 16. Rxd6 {[%clk 0:02:29]}  Bxc3 {[%clk 0:00:58]} 17. bxc3 {[%clk 0:02:20]}  Bg4 {[%clk 0:00:54]} 18. Rhd1 {[%clk 0:02:13]}  Ne6 {[%clk 0:00:51]} 19. Ng1 {[%clk 0:02:04]}  Bxe2 {[%clk 0:00:44]} 20. Nxe2 {[%clk 0:02:05]}  Rad8 {[%clk 0:00:41]} 21. f4 {[%clk 0:02:03]}  Rxd6 {[%clk 0:00:37]} 22. Rxd6 {[%clk 0:02:01]}  Rc8 {[%clk 0:00:35]} 23. Rd7 {[%clk 0:01:59]}  a5 {[%clk 0:00:28]} 24. Rxe7 {[%clk 0:01:59]} 1-0


[Site "https://www.chess.com"]

[Event "Titled Tuesday Blitz April 05 Late 2022"]
[White "Karttunen, Mika"]
[Black "Kujawski, Adam"]
[WhiteFideId "502081"]
[BlackFideId "1100920"]
[WhiteElo "2343"]
[BlackElo "2053"]
[Result "1-0"]
[Round "01"]
[TimeControl "180+1"]
[Date "2022.04.06"]
[WhiteClock "0:00:33"]
[BlackClock "0:00:01"]

1. e4 {[%clk 0:03:00]}  e5 {[%clk 0:02:59]} 2. Nf3 {[%clk 0:03:00]}  Nc6 {[%clk 0:02:58]} 3. Bb5 {[%clk 0:03:00]}  a6 {[%clk 0:02:58]} 4. Ba4 {[%clk 0:03:00]}  Nf6 {[%clk 0:02:57]} 5. O-O {[%clk 0:03:00]}  Be7 {[%clk 0:02:57]} 6. Re1 {[%clk 0:02:59]}  b5 {[%clk 0:02:57]} 7. Bb3 {[%clk 0:02:59]}  d6 {[%clk 0:02:57]} 8. c3 {[%clk 0:02:59]}  O-O {[%clk 0:02:57]} 9. h3 {[%clk 0:02:59]}  Nb8 {[%clk 0:02:57]} 10. d4 {[%clk 0:02:59]}  Nbd7 {[%clk 0:02:56]} 11. Nbd2 {[%clk 0:02:59]}  Bb7 {[%clk 0:02:57]} 12. Bc2 {[%clk 0:02:59]}  Re8 {[%clk 0:02:56]} 13. Nf1 {[%clk 0:02:59]}  Bf8 {[%clk 0:02:57]} 14. Ng3 {[%clk 0:02:59]}  g6 {[%clk 0:02:57]} 15. a4 {[%clk 0:02:57]}  c5 {[%clk 0:02:57]} 16. d5 {[%clk 0:02:57]}  c4 {[%clk 0:02:57]} 17. Bg5 {[%clk 0:02:56]}  h6 {[%clk 0:02:57]} 18. Be3 {[%clk 0:02:56]}  Kh7 {[%clk 0:02:57]} 19. Nh2 {[%clk 0:02:37]}  Nc5 {[%clk 0:02:56]} 20. f4 {[%clk 0:02:18]}  exf4 {[%clk 0:02:44]} 21. Bxf4 {[%clk 0:02:17]}  Bg7 {[%clk 0:02:43]} 22. a5 {[%clk 0:02:03]}  Bc8 {[%clk 0:01:56]} 23. Nf3 {[%clk 0:01:59]}  Ra7 {[%clk 0:01:29]} 24. Nd4 {[%clk 0:01:51]}  Bb7 {[%clk 0:00:59]} 25. Kh1 {[%clk 0:01:45]}  Ba8 {[%clk 0:00:55]} 26. Nc6 {[%clk 0:00:43]}  Bxc6 {[%clk 0:00:54]} 27. dxc6 {[%clk 0:00:44]}  Rc7 {[%clk 0:00:15]} 28. Bxd6 {[%clk 0:00:38]}  Rxc6 {[%clk 0:00:15]} 29. e5 {[%clk 0:00:38]}  Nfd7 {[%clk 0:00:08]} 30. Qd5 {[%clk 0:00:38]}  Qc8 {[%clk 0:00:06]} 31. Qxf7 {[%clk 0:00:36]}  Nf8 {[%clk 0:00:01]} 32. Nh5 {[%clk 0:00:33]} 1-0


[Site "https://www.chess.com"]